fUSD/lending_fUSD_20240625
["ID","MTS","AMOUNT","RATE_DAILY","PERIOD"]
[330367656,1719336655588,-500.0,0.00019178,2]
[330367657,1719336655597,-4276.51,0.00019178,2]
[330367658,1719336655607,-1263.60981699,0.00019178,2]
[330367659,1719336655619,-4048.12018301,0.00019178,2]
[330367660,1719336655628,-2180.51,0.00019178,2]
[330367661,1719336655638,-500.0,0.00019178,2]
[330367662,1719336655647,-999.4,0.00019178,2]
[330367663,1719336655657,-500.0,0.00019178,2]
[330367664,1719336655667,-4162.94,0.00019178,2]
[330367665,1719336655676,-500.0,0.00019178,2]
[330367666,1719336655686,-1125.33,0.00019178,2]
[330367667,1719336655695,-500.0,0.00019178,2]
[330367668,1719336655706,-2643.06,0.00019178,2]
[330367669,1719336655720,-500.0,0.00019178,2]
[330367670,1719336655729,-500.0,0.00019178,2]
[330367671,1719336655739,-1188.61,0.00019178,2]
[330367672,1719336655748,-767.58,0.00019178,2]
[330367673,1719336655758,-500.0,0.00019178,2]
[330367674,1719336655767,-1611.42,0.00019178,2]
[330367675,1719336655777,-500.0,0.00019178,2]
[330367676,1719336655788,-2425.33951057,0.00019178,2]
[330367677,1719336655802,-571.04048943,0.00019178,2]
[330367678,1719336655811,-518.62,0.00019178,2]
[330367679,1719336655821,-1406.72,0.00019178,2]
[330367680,1719336655830,-500.0,0.00019178,2]
[330367681,1719336655840,-742.21,0.00019178,2]
[330367682,1719336655849,-500.0,0.00019178,2]
[330367683,1719336655859,-500.0,0.00019178,2]
[330367684,1719336655868,-500.0,0.00019178,2]
[330367685,1719336655878,-500.0,0.00019178,2]
[330367686,1719336655887,-795.37,0.00019178,2]
[330367687,1719336655897,-1706.93,0.00019178,2]
[330367688,1719336655907,-3579.18,0.00019178,2]
[330367689,1719336655920,-18543.0,0.00019178,2]
[330367690,1719336655929,-3127.12,0.00019178,2]
[330367691,1719336655939,-500.0,0.00019178,2]
[330367692,1719336655948,-500.0,0.00019178,2]
[330367693,1719336655958,-500.0,0.00019178,2]
[330367694,1719336655967,-4033.67,0.00019178,2]
[330367695,1719336655976,-500.0,0.00019178,2]
[330367696,1719336655986,-1786.08,0.00019178,2]
[330367697,1719336655995,-500.0,0.00019178,2]
[330367698,1719336656005,-500.0,0.00019178,2]
[330367699,1719336656014,-1007.33,0.00019178,2]
[330367700,1719336656024,-500.0,0.00019178,2]
[330367701,1719336656033,-7194.15,0.00019178,2]
[330367702,1719336656043,-28189.22,0.00019178,2]
[330367703,1719336656052,-3205.59,0.00019178,2]
[330367704,1719336656062,-500.0,0.00019178,2]
[330367705,1719336656071,-500.0,0.00019178,2]
[330367706,1719336656081,-500.0,0.00019178,2]
[330367707,1719336656091,-15373.9,0.00019178,2]
[330367708,1719336656100,-1068.37,0.00019178,2]
[330367709,1719336656109,-500.0,0.00019178,2]
[330367710,1719336656119,-839.84,0.00019178,2]
[330367711,1719336656128,-500.0,0.00019178,2]
[330367712,1719336656137,-1154.96,0.00019178,2]
[330367713,1719336656146,-500.0,0.00019178,2]
[330367714,1719336656155,-463.70548386,0.00019178,2]
[330367715,1719336656166,-38853.88,0.00019178,2]
[330367716,1719336656176,-1226.55,0.00019178,2]
[330367717,1719336656186,-1249.37,0.00019178,2]
[330367718,1719336656195,-500.0,0.00019178,2]
[330367719,1719336656207,-500.0,0.00019178,2]
[330367720,1719336656216,-1833.93,0.00019178,2]
[330367721,1719336656225,-13245.86,0.00019178,2]
[330367722,1719336656235,-764.08,0.00019178,2]
[330367723,1719336656245,-500.0,0.00019178,2]
[330367724,1719336656254,-500.0,0.00019178,2]
[330367725,1719336656263,-4342.77,0.00019178,2]
[330367726,1719336656273,-500.0,0.00019178,2]
[330367727,1719336656282,-403.1461863,0.00019178,2]
[330367728,1719336656291,-500.0,0.00019178,2]
[330367729,1719336656300,-5410.15,0.00019178,2]
[330367730,1719336656309,-500.0,0.00019178,2]
[330367731,1719336656319,-4792.6,0.00019178,2]
[330367732,1719336656329,-3816.66,0.00019178,2]
[330367733,1719336656338,-1515.9,0.00019178,2]
[330367734,1719336656347,-500.0,0.00019178,2]
[330367735,1719336656356,-4189.21,0.00019178,2]
[330367736,1719336656365,-856.47,0.00019178,2]
[330367737,1719336656374,-500.0,0.00019178,2]
[330367738,1719336656383,-500.0,0.00019178,2]
[330367739,1719336656392,-500.0,0.00019178,2]
[330367740,1719336656401,-572.02609609,0.00019178,2]
[330367741,1719336656410,-500.0,0.00019178,2]
[330367742,1719336656420,-500.0,0.00019178,2]
[330367743,1719336656429,-934.66,0.00019178,2]
[330367744,1719336656438,-500.0,0.00019178,2]
[330367745,1719336656447,-526.66263047,0.00019178,2]
[330367746,1719336656455,-500.0,0.00019178,2]
[330367747,1719336656465,-500.0,0.00019178,2]
[330367748,1719336656474,-547.31,0.00019178,2]
[330367749,1719336656483,-500.0,0.00019178,2]
[330367750,1719336656492,-500.0,0.00019178,2]
[330367751,1719336656501,-890.61,0.00019178,2]
[330367752,1719336656511,-566.33162427,0.00019178,2]
[330367753,1719336656520,-1045.8,0.00019178,2]
[330367754,1719336656529,-3722.76,0.00019178,2]
[330367755,1719336656538,-1266.22,0.00019178,2]
[330367756,1719336656547,-500.0,0.00019178,2]
[330367757,1719336656556,-500.0,0.00019178,2]
[330367758,1719336656565,-500.0,0.00019178,2]
[330367759,1719336656574,-808.69,0.00019178,2]
[330367760,1719336656583,-2172.79,0.00019178,2]
[330367761,1719336656592,-500.0,0.00019178,2]
[330367762,1719336656601,-2208.17,0.00019178,2]
[330367763,1719336656611,-349.99324395,0.00019178,2]
[330367764,1719336656620,-721.47,0.00019178,2]
[330367765,1719336656629,-3743.55,0.00019178,2]
[330367766,1719336656639,-500.0,0.00019178,2]
[330367767,1719336656648,-3307.15,0.00019178,2]
[330367768,1719336656658,-500.0,0.00019178,2]
[330367769,1719336656668,-740.24,0.00019178,2]
[330367770,1719336656678,-1441.88,0.00019178,2]
[330367771,1719336656687,-500.0,0.00019178,2]
[330367772,1719336656696,-1695.48,0.00019178,2]
[330367773,1719336656710,-667.97,0.00019178,2]
[330367774,1719336656719,-6570.58,0.00019178,2]
[330367775,1719336656728,-500.0,0.00019178,2]
[330367776,1719336656738,-8398.44,0.00019178,2]
[330367777,1719336656747,-29.46388227,0.00019178,2]
[330367778,1719336656762,-470.53611773,0.00019178,2]
[330367779,1719336656771,-158.55553394,0.00019178,2]
[330367780,1719336656782,-500.0,0.00019178,2]
[330367781,1719336656794,-500.0,0.00019178,2]
[330367782,1719336656803,-500.0,0.00019178,2]
[330367783,1719336656813,-500.0,0.00019178,2]
[330367784,1719336656823,-41.97842726,0.00019178,2]
[330367785,1719336656835,-458.02157274,0.00019178,2]
[330367786,1719336656845,-500.0,0.00019178,2]
[330367787,1719336656854,-500.0,0.00019178,2]
[330367788,1719336656863,-104.08919789,0.00019178,2]
[330367789,1719336656875,-4560.25080211,0.00019178,2]
[330367790,1719336656884,-1618.01,0.00019178,2]
[330367791,1719336656894,-18.33089381,0.00019178,2]
[330367792,1719336656905,-4729.16910619,0.00019178,2]
[330367793,1719336656917,-500.0,0.00019178,2]
[330367794,1719336656927,-500.0,0.00019178,2]
[330367795,1719336656937,-500.0,0.00019178,2]
[330367796,1719336656946,-335.58810627,0.00019178,2]
[330367797,1719336656957,-164.41189373,0.00019178,2]
[330367798,1719336656967,-730.21687835,0.00019178,2]
[330367799,1719336656979,-124.09312165,0.00019178,2]
[330367800,1719336656988,-500.0,0.00019178,2]
[330367801,1719336656997,-271.91687835,0.00019178,2]
[330367802,1719336657009,-774.52442303,0.00019178,2]
[330367803,1719336657042,-344.81869862,0.00019178,2]
[330367804,1719336657051,-500.0,0.00019178,2]
[330367805,1719336657060,-5009.02,0.00019178,2]
[330367806,1719336657069,-500.0,0.00019178,2]
[330367807,1719336657078,-500.0,0.00019178,2]
[330367808,1719336657087,-583.0,0.00019178,2]
[330367809,1719336657096,-1580.11,0.00019178,2]
[330367810,1719336657106,-500.0,0.00019178,2]
[330367811,1719336657115,-2904.18,0.00019178,2]
[330367812,1719336657125,-1100.28230517,0.00019178,2]
[330367813,1719336657136,-434.32769483,0.00019178,2]
[330367814,1719336657145,-3955.16935904,0.00019178,2]
[330367815,1719336657167,-501.08952336,0.00019178,2]
[330367816,1719336657179,-20761.5311176,0.00019178,2]
[330367817,1719336657188,-611.19520626,0.00019178,2]
[330367818,1719336657197,-1517.46,0.00019178,2]
[330367819,1719336657206,-4052.93,0.00019178,2]
[330367820,1719336657216,-647.0,0.00019178,2]
[330367821,1719336657225,-500.0,0.00019178,2]
[330367822,1719336657234,-815.6,0.00019178,2]
[330367823,1719336657243,-500.0,0.00019178,2]
[330367824,1719336657252,-669.54,0.00019178,2]
[330367825,1719336657261,-3651.78,0.00019178,2]
[330367826,1719336657271,-500.0,0.00019178,2]
[330367827,1719336657280,-4932.14,0.00019178,2]
[330367828,1719336657289,-500.0,0.00019178,2]
[330367829,1719336657298,-363.35665418,0.00019178,2]
[330367830,1719336657307,-993.89,0.00019178,2]
[330367831,1719336657316,-4934.02,0.00019178,2]
[330367832,1719336657325,-1869.84,0.00019178,2]
[330367833,1719336657334,-692.75,0.00019178,2]
[330367834,1719336657344,-500.0,0.00019178,2]
[330367835,1719336657353,-500.0,0.00019178,2]
[330367836,1719336657362,-395.17923482,0.00019178,2]
[330367837,1719336657374,-231.28076518,0.00019178,2]
[330367838,1719336657383,-1432.49,0.00019178,2]
[330367839,1719336657392,-500.0,0.00019178,2]
[330367840,1719336657401,-500.0,0.00019178,2]
[330367841,1719336657410,-500.0,0.00019178,2]
[330367842,1719336657420,-1428.38102097,0.00019178,2]
[330367843,1719336657431,-646.11840695,0.00019178,2]
[330367844,1719336657442,-1000.54103258,0.00019178,2]
[330367845,1719336776423,216.05,0.00018849,30]
[330367854,1719336946724,45000.0,0.000112,2]
[330367855,1719336946750,72464.1835736,0.000112,2]
[330367860,1719337104724,3106.52214219,0.00013576,2]
[330367861,1719337109043,2491.01847886,0.00013576,2]
[330367863,1719337111210,887.81042537,0.00013576,2]
[330367864,1719337112350,411.27901864,0.00013576,2]
[330367865,1719337120191,310.4106269,0.00013576,2]
[330367872,1719337405661,198.04,0.00018849,30]
[330367899,1719337832651,-482.0,0.00014453,2]
[330367900,1719337832660,-18.0,0.00016087,2]
[330367901,1719337833007,-466.35,0.00016087,2]
[330367902,1719337833017,-25.93683468,0.00016815,2]
[330367904,1719337833030,-465.65120639,0.00016815,2]
[330367906,1719337833041,-232.43200493,0.00016815,2]
[330367917,1719337833268,-636.0,0.000169,2]
[330367918,1719337833280,-2702.0,0.000169,2]
[330367919,1719337833290,-150.0,0.00017311,2]
[330367920,1719337833299,-4042.41,0.0001737,2]
[330367921,1719337833310,-1000.0,0.00017473,2]
[330367922,1719337833319,-250.0,0.00017473,2]
[330367923,1719337833331,-150.99,0.00017473,2]
[330367924,1719337833341,-169.74,0.0001764,2]
[330367925,1719337833351,-909.67,0.0001764,2]
[330367926,1719337833360,-1007.88,0.00017683,2]
[330367927,1719337833371,-762.04,0.00017693,2]
[330367928,1719337833381,-499.99,0.00017693,2]
[330367929,1719337833391,-23900.0,0.00017706,2]
[330367930,1719337833401,-250.0,0.00017774,2]
[330367931,1719337833411,-176.55,0.00017826,2]
[330367932,1719337833421,-189.05,0.00017992,2]
[330367933,1719337833430,-1718.27,0.00018005,2]
[330367934,1719337833440,-150.99,0.00018294,2]
[330367935,1719337833449,-484.35,0.00018351,2]
[330367936,1719337833459,-154.77,0.00018418,2]
[330367937,1719337833468,-170.07,0.00018619,2]
[330367938,1719337833477,-155.13544744,0.00018747,2]
[330367939,1719337833487,-259.44837066,0.00018748,2]
[330367940,1719337833496,-112748.0,0.00018796,2]
[330367941,1719337833505,-3390.03817492,0.00018848,3]
[330367942,1719337833515,-27230.27163246,0.00018849,2]
[330367943,1719337833524,-322.8,0.00018966,2]
[330367944,1719337833536,-259.44837065,0.00018967,2]
[330367945,1719337833545,-463.21,0.00018976,3]
[330367946,1719337833554,-155.0,0.00018989,2]
[330367947,1719337833564,-684.3304205,0.00018989,2]
[330367948,1719337833573,-155.0,0.00018989,2]
[330367949,1719337833583,-12469.00144837,0.0001899,2]
[330367950,1719337833592,-206.03175266,0.00019077,2]
[330367951,1719337833601,-155.0,0.00019077,2]
[330367952,1719337833610,-12053.56851484,0.00019078,2]
[330367953,1719337833619,-752.38776104,0.00019078,2]
[330367954,1719337833628,-791.12226459,0.00019078,2]
[330367955,1719337833637,-2875.60395382,0.00019078,2]
[330367956,1719337833647,-25000.0,0.00019078,2]
[330367957,1719337833656,-440.2269,0.00019078,2]
[330367958,1719337833665,-5797.0,0.00019105,2]
[330367959,1719337833675,-2212.15099067,0.00019159,2]
[330367960,1719337833684,-200.0,0.0001916,2]
[330367961,1719337833693,-1000.0,0.0001916,2]
[330367962,1719337833702,-500.0,0.00019178,2]
[330367963,1719337833711,-500.0,0.00019178,2]
[330367964,1719337833722,-503.75794463,0.00019178,2]
[330367965,1719337833731,-500.0,0.00019178,2]
[330367966,1719337833741,-500.0,0.00019178,2]
[330367967,1719337833750,-500.0,0.00019178,2]
[330367968,1719337833760,-500.0,0.00019178,2]
[330367969,1719337833769,-500.0,0.00019178,2]
[330367970,1719337833780,-500.0,0.00019178,2]
[330367971,1719337833789,-500.0,0.00019178,2]
[330367972,1719337833799,-500.0,0.00019178,2]
[330367973,1719337833808,-485.92313327,0.00019178,2]
[330367974,1719337833822,-219.9962285,0.00019178,2]
[330367975,1719337833831,-500.0,0.00019178,2]
[330367976,1719337833840,-500.0,0.00019178,2]
[330367977,1719337833850,-500.0,0.00019178,2]
[330367978,1719337833859,-500.0,0.00019178,2]
[330367979,1719337833868,-500.0,0.00019178,2]
[330367980,1719337833877,-500.0,0.00019178,2]
[330367981,1719337833887,-474.37809629,0.00019178,2]
[330367982,1719337833896,-500.0,0.00019178,2]
[330367983,1719337833905,-512.76863674,0.00019178,2]
[330367984,1719337833914,-500.0,0.00019178,2]
[330367985,1719337833923,-500.0,0.00019178,2]
[330367986,1719337833932,-500.0,0.00019178,2]
[330367987,1719337833941,-563.04710503,0.00019178,2]
[330367988,1719337833951,-500.0,0.00019178,2]
[330367989,1719337833960,-500.0,0.00019178,2]
[330367990,1719337833969,-500.0,0.00019178,2]
[330367991,1719337833979,-500.0,0.00019178,2]
[330367992,1719337833988,-500.0,0.00019178,2]
[330367993,1719337833998,-2000.0,0.00019178,2]
[330367994,1719337834007,-500.0,0.00019178,2]
[330367995,1719337834017,-500.0,0.00019178,2]
[330367996,1719337834028,-500.0,0.00019178,2]
[330367997,1719337834048,-500.0,0.00019178,2]
[330367998,1719337834058,-500.0,0.00019178,2]
[330367999,1719337834068,-1061.51,0.00019178,2]
[330368000,1719337834078,-500.0,0.00019178,2]
[330368001,1719337834088,-500.0,0.00019178,2]
[330368002,1719337834098,-500.0,0.00019178,2]
[330368003,1719337834108,-500.0,0.00019178,2]
[330368004,1719337834118,-2455.15,0.00019178,2]
[330368005,1719337834128,-2500.0,0.00019178,3]
[330368006,1719337834144,-1271.22,0.00019178,2]
[330368007,1719337834154,-500.0,0.00019178,2]
[330368008,1719337834163,-500.0,0.00019178,2]
[330368009,1719337834174,-500.0,0.00019178,2]
[330368010,1719337834184,-500.0,0.00019178,2]
[330368011,1719337834194,-500.0,0.00019178,2]
[330368012,1719337834204,-500.0,0.00019178,2]
[330368013,1719337834215,-500.0,0.00019178,2]
[330368014,1719337834225,-500.0,0.00019178,2]
[330368015,1719337834235,-500.0,0.00019178,2]
[330368016,1719337834244,-1041.25,0.00019178,2]
[330368017,1719337834254,-746.42,0.00019178,2]
[330368018,1719337834264,-500.0,0.00019178,2]
[330368019,1719337834273,-500.0,0.00019178,2]
[330368020,1719337834284,-867.14,0.00019178,2]
[330368021,1719337834294,-500.0,0.00019178,2]
[330368022,1719337834304,-500.0,0.00019178,2]
[330368023,1719337834314,-2645.36,0.00019178,2]
[330368024,1719337834324,-751.61,0.00019178,2]
[330368025,1719337834334,-500.0,0.00019178,2]
[330368026,1719337834344,-500.0,0.00019178,2]
[330368027,1719337834354,-1356.99,0.00019178,2]
[330368028,1719337834364,-500.0,0.00019178,2]
[330368029,1719337834373,-1175.6,0.00019178,2]
[330368030,1719337834383,-500.0,0.00019178,2]
[330368031,1719337834394,-500.0,0.00019178,2]
[330368032,1719337834403,-500.0,0.00019178,2]
[330368033,1719337834413,-500.0,0.00019178,2]
[330368034,1719337834423,-500.0,0.00019178,2]
[330368035,1719337834435,-500.0,0.00019178,2]
[330368036,1719337834444,-1372.16,0.00019178,2]
[330368037,1719337834454,-2625.16,0.00019178,2]
[330368038,1719337834464,-500.0,0.00019178,2]
[330368039,1719337834473,-1108.12,0.00019178,2]
[330368040,1719337834484,-500.0,0.00019178,2]
[330368041,1719337834493,-500.0,0.00019178,2]
[330368042,1719337834502,-276.93472537,0.00019178,2]
[330368043,1719337834512,-1523.16,0.00019178,2]
[330368044,1719337834522,-531.38,0.00019178,2]
[330368045,1719337834533,-761.88,0.00019178,2]
[330368046,1719337834543,-500.0,0.00019178,2]
[330368047,1719337834552,-1024.76,0.00019178,2]
[330368048,1719337834562,-500.0,0.00019178,2]
[330368049,1719337834572,-500.0,0.00019178,2]
[330368050,1719337834581,-983.79,0.00019178,2]
[330368051,1719337834591,-638.84,0.00019178,2]
[330368052,1719337834600,-1492.67,0.00019178,2]
[330368053,1719337834609,-680.18,0.00019178,2]
[330368054,1719337834619,-500.0,0.00019178,2]
[330368055,1719337834630,-167.12302568,0.00019178,2]
[330368056,1719337834640,-1515.14,0.00019178,2]
[330368057,1719337834650,-1556.79,0.00019178,2]
[330368058,1719337834664,-500.0,0.00019178,2]
[330368059,1719337834674,-785.12,0.00019178,2]
[330368060,1719337834684,-500.0,0.00019178,2]
[330368061,1719337834693,-617.17,0.00019178,2]
[330368062,1719337834703,-500.0,0.00019178,2]
[330368063,1719337834712,-865.89,0.00019178,2]
[330368064,1719337834722,-1076.26,0.00019178,2]
[330368065,1719337834731,-500.0,0.00019178,2]
[330368066,1719337834741,-1673.1,0.00019178,2]
[330368067,1719337834751,-554.99,0.00019178,2]
[330368068,1719337834761,-1752.72,0.00019178,2]
[330368069,1719337834771,-500.0,0.00019178,2]
[330368070,1719337834782,-500.0,0.00019178,2]
[330368071,1719337834791,-500.0,0.00019178,2]
[330368072,1719337834801,-500.0,0.00019178,2]
[330368073,1719337834812,-1196.42,0.00019178,2]
[330368074,1719337834822,-500.0,0.00019178,2]
[330368075,1719337834833,-500.0,0.00019178,2]
[330368076,1719337834843,-546.0,0.00019178,2]
[330368077,1719337834852,-500.0,0.00019178,2]
[330368078,1719337834862,-500.0,0.00019178,2]
[330368079,1719337834872,-1230.45,0.00019178,2]
[330368080,1719337834882,-500.0,0.00019178,2]
[330368081,1719337834892,-1638.27,0.00019178,2]
[330368082,1719337834901,-500.0,0.00019178,2]
[330368083,1719337834910,-721.81,0.00019178,2]
[330368084,1719337834921,-500.0,0.00019178,2]
[330368085,1719337834930,-916.29,0.00019178,2]
[330368086,1719337834940,-1110.71,0.00019178,2]
[330368087,1719337834950,-1305.49,0.00019178,2]
[330368088,1719337834960,-618.25061229,0.00019178,2]
[330368089,1719337834970,-813.41,0.00019178,2]
[330368090,1719337834980,-500.0,0.00019178,2]
[330368091,1719337834990,-500.0,0.00019178,2]
[330368092,1719337835000,-500.0,0.00019178,2]
[330368093,1719337835011,-500.0,0.00019178,2]
[330368094,1719337835021,-500.0,0.00019178,2]
[330368095,1719337835032,-500.0,0.00019178,2]
[330368096,1719337835042,-500.0,0.00019178,2]
[330368097,1719337835052,-500.0,0.00019178,2]
[330368098,1719337835062,-738.2,0.00019178,2]
[330368099,1719337835072,-500.0,0.00019178,2]
[330368100,1719337835082,-500.0,0.00019178,2]
[330368101,1719337835092,-500.0,0.00019178,2]
[330368102,1719337835102,-629.35,0.00019178,2]
[330368103,1719337835111,-500.0,0.00019178,2]
[330368104,1719337835122,-2096.31,0.00019178,2]
[330368105,1719337835137,-2936.53,0.00019178,2]
[330368106,1719337835147,-500.0,0.00019178,2]
[330368107,1719337835157,-500.0,0.00019178,2]
[330368108,1719337835167,-500.0,0.00019178,2]
[330368109,1719337835179,-500.0,0.00019178,2]
[330368110,1719337835190,-500.0,0.00019178,2]
[330368111,1719337835199,-500.0,0.00019178,2]
[330368112,1719337835211,-278.56753577,0.00019178,2]
[330368113,1719337835222,-500.0,0.00019178,2]
[330368114,1719337835231,-500.0,0.00019178,2]
[330368115,1719337835241,-500.0,0.00019178,2]
[330368116,1719337835251,-500.0,0.00019178,2]
[330368117,1719337835261,-500.0,0.00019178,2]
[330368118,1719337835271,-717.21,0.00019178,2]
[330368119,1719337835282,-500.0,0.00019178,2]
[330368120,1719337835295,-500.0,0.00019178,2]
[330368121,1719337835306,-500.0,0.00019178,2]
[330368122,1719337835316,-759.42,0.00019178,2]
[330368123,1719337835325,-500.0,0.00019178,2]
[330368124,1719337835338,-971.03,0.00019178,2]
[330368125,1719337835349,-524.13,0.00019178,2]
[330368126,1719337835359,-500.0,0.00019178,2]
[330368127,1719337835369,-598.1,0.00019178,2]
[330368128,1719337835380,-500.0,0.00019178,2]
[330368129,1719337835389,-500.0,0.00019178,2]
[330368130,1719337835399,-589.92,0.00019178,2]
[330368131,1719337835410,-500.0,0.00019178,2]
[330368132,1719337835420,-500.0,0.00019178,2]
[330368133,1719337835430,-675.22,0.00019178,2]
[330368134,1719337835440,-500.0,0.00019178,2]
[330368135,1719337835450,-500.0,0.00019178,2]
[330368136,1719337835460,-905.04,0.00019178,2]
[330368137,1719337835470,-669.2,0.00019178,2]
[330368138,1719337835480,-1247.28,0.00019178,2]
[330368139,1719337835490,-500.0,0.00019178,2]
[330368140,1719337835500,-500.0,0.00019178,2]
[330368141,1719337835510,-500.0,0.00019178,2]
[330368142,1719337835519,-1109.18,0.00019178,2]
[330368143,1719337835530,-500.0,0.00019178,2]
[330368144,1719337835540,-500.0,0.00019178,2]
[330368145,1719337835550,-500.0,0.00019178,2]
[330368146,1719337835560,-500.0,0.00019178,2]
[330368147,1719337835571,-500.0,0.00019178,2]
[330368148,1719337835581,-500.0,0.00019178,2]
[330368149,1719337835590,-500.0,0.00019178,2]
[330368150,1719337835600,-500.0,0.00019178,2]
[330368151,1719337835610,-289.41596614,0.00019178,2]
[330368152,1719337835619,-1070.09497932,0.00019178,2]
[330368153,1719337835673,-26.24502068,0.00019178,2]
[330368154,1719337835683,-500.0,0.00019178,2]
[330368155,1719337835692,-1550.19,0.00019178,2]
[330368156,1719337835701,-531.6716002,0.00019178,2]
[330368157,1719337835711,-500.0,0.00019178,2]
[330368158,1719337835722,-504.78769526,0.00019178,2]
[330368159,1719337835731,-757.11,0.00019178,2]
[330368160,1719337835741,-500.0,0.00019178,2]
[330368161,1719337835751,-500.0,0.00019178,2]
[330368162,1719337835760,-500.0,0.00019178,2]
[330368163,1719337835770,-500.0,0.00019178,2]
[330368164,1719337835780,-500.0,0.00019178,2]
[330368165,1719337835790,-1826.94,0.00019178,2]
[330368166,1719337835799,-500.0,0.00019178,2]
[330368167,1719337835809,-500.0,0.00019178,2]
[330368168,1719337835818,-773.72,0.00019178,2]
[330368169,1719337835828,-500.0,0.00019178,2]
[330368170,1719337835837,-500.0,0.00019178,2]
[330368171,1719337836102,-500.0,0.00019178,2]
[330368172,1719337836111,-1728.25,0.00019178,2]
[330368173,1719337836121,-500.0,0.00019178,2]
[330368174,1719337836133,-973.7,0.00019178,2]
[330368175,1719337836144,-500.0,0.00019178,2]
[330368176,1719337836155,-773.97,0.00019178,2]
[330368177,1719337836165,-1154.02,0.00019178,2]
[330368178,1719337836175,-458.64298793,0.00019178,2]
[330368179,1719337836189,-93.10933722,0.00019178,2]
[330368180,1719337836198,-1784.58,0.00019178,2]
[330368181,1719337836208,-658.68,0.00019178,2]
[330368182,1719337836220,-525.47,0.00019178,2]
[330368183,1719337836230,-500.0,0.00019178,2]
[330368184,1719337836240,-894.86,0.00019178,2]
[330368185,1719337836250,-605.67233568,0.00019178,2]
[330368186,1719337836259,-500.0,0.00019178,2]
[330368187,1719337836270,-1106.26,0.00019178,2]
[330368188,1719337836281,-179.70622714,0.00019178,2]
[330368189,1719337836294,-320.29377286,0.00019178,2]
[330368190,1719337836304,-500.0,0.00019178,2]
[330368191,1719337836313,-556.82,0.00019178,2]
[330368192,1719337836323,-500.0,0.00019178,2]
[330368193,1719337836336,-1088.59,0.00019178,2]
[330368194,1719337836345,-500.0,0.00019178,2]
[330368195,1719337836355,-500.0,0.00019178,2]
[330368196,1719337836364,-500.0,0.00019178,2]
[330368197,1719337836374,-1061.87,0.00019178,2]
[330368198,1719337836383,-1519.41,0.00019178,2]
[330368199,1719337836392,-1886.29,0.00019178,2]
[330368200,1719337836401,-577.60685935,0.00019178,2]
[330368201,1719337836410,-671.23,0.00019178,2]
[330368202,1719337836419,-208.64740947,0.00019178,2]
[330368203,1719337836428,-842.01,0.00019178,2]
[330368204,1719337836438,-500.0,0.00019178,2]
[330368205,1719337836448,-500.0,0.00019178,2]
[330368206,1719337836458,-848.32,0.00019178,2]
[330368207,1719337836467,-571.84,0.00019178,2]
[330368208,1719337836476,-500.0,0.00019178,2]
[330368209,1719337836486,-572.51891177,0.00019178,2]
[330368210,1719337836495,-547.07,0.00019178,2]
[330368211,1719337836504,-1275.37,0.00019178,2]
[330368212,1719337836514,-708.32,0.00019178,2]